Workbook

Sheet Mixed_Pythagoras_Theorem
B2: N5 Lifeskills - Pythagoras Theorem Created by Mr.Lafferty@mathsrevision.com
AY7: =N15-L10 -> 7 | AZ7: =G12 -> 10
B8: Q1. | C8: A banner is to be edged all round with gold braid. | P8: The banner is in the shape of a rectangle with an isosceles triangle, | AH8: as shown in the diagram. | AY8: =G12/2 -> 5 | AZ8: =L10 -> 13
P9: Calculate the total length of gold braid needed. | AY9: =POWER((AY7*AY7+AY8*AY8),0.5)*2 -> 17.20465053 | AZ9: =L10 -> 13
L10: =ROUND(RAND()*(17-10)+10,0) -> 13 | M10: cm | AZ10: =AY9 -> 17.20465053
U11: Answer | Z11: cm | AA11: ( to 1 d.p.) | AZ11: =ROUND(SUM(AZ7:AZ10),1) -> 53.2
G12: =N15*0.5 -> 10 | I12: cm | W12: ( Marks 5 RE )
N15: =ROUND(L10*3/2,0) -> 20 | O15: cm
B18: Q2. | C18: A rectangular picture measuring | L18: =ROUND(RAND()*(60-50)+50,0)*10 -> 540 | M18: =ROUND(RAND()*(17-10)+10,0) -> 12 | N18: mm | O18: by | P18: =ROUND(RAND()*(25-13)+13,0)*10 -> 200 | Q18: =ROUND(RAND()*(17-10)+10,0) -> 11 | R18: mm | S18: is placed diagonally in a cuboid shaped box as shown.
U21: Answer | Z21: mm | AA21: ( to 1 d.p.) | AZ21: =ROUND(POWER((L18*L18-I25*I25),0.5),1) -> 103.4
W22: ( Marks 3 RE )
C25: The box has length | I25: =L18-(ROUND(RAND()*(4-1)+1,0)*10) -> 530 | J25: =ROUND(RAND()*(17-10)+10,0) -> 10 | K25: mm | L25: by | M25: =P18 -> 200 | O25: mm | R25: Calculate the height of the box.
AY26: =ROUND(RAND()*(2-1)+1,0) -> 1
AY27: =IF(AY26=1,3,2) -> 3 | AZ27: =ROUND(RAND()*(20-1)+1,0)*AY27 -> 42
B28: Q3. | C28: The diagram below show the position of three towns, Torrance, Lennoxtown and Campsie. | AA28: Calculate the distance between Torrance and Campsie. | AY28: 4 | AZ28: =AZ27/AY27*AY28 -> 56
P29: L | AY29: 5 | AZ29: =AZ27/AY27*AY29 -> 70
I31: =ROUND(RAND()*(9-5)+5,0) -> 9 | J31: km | Q31: =I31-ROUND(RAND()*(3-1)+1,0) -> 6 | R31: km | U31: Answer | Z31: km | AA31: ( to 1 d.p.) | AZ31: =ROUND(POWER((I31*I31+Q31*Q31),0.5),1) -> 10.8
W32: ( Marks 3 KU )
E34: T | R34: C
B38: Q4. | C38: A wall display unit is in the shape of an equilateral triangle with sides | V38: =ROUND(RAND()*(65-48)+48,0) -> 57 | W38: =ROUND(RAND()*(50-20)+20,0) -> 42 | X38: cm | Y38: . One half of the cabinet has shelves; the other half has a glass door. | AZ38: =V38 -> 57
AZ39: =AZ38/2 -> 28.5
J41: (a) Calculate the height of the cabinet. | Z41: cm | AA41: ( to 1 d.p.) | AZ41: =ROUND(POWER((AZ38*AZ38-AZ39*AZ39),0.5),1) -> 49.4
W42: ( Marks 4 KU )
J44: (b) Find the area of the glass door. | Z44: cm2 | AA44: ( to 1 d.p.) | AZ44: =ROUND(0.5*0.5*AZ41*AZ38,1) -> 704
W45: ( Marks 2 KU )
AZ47: =N48 -> 5
B48: Q5. | C48: Bellshill and Hamilton are two small towns | N48: =ROUND(RAND()*(8-5)+5,0) -> 5 | O48: =ROUND(RAND()*(12-8)+8,0) -> 10 | P48: km | Q48: apart. | S48: A by-pass is being built to reduce the traffic passing through the two towns, | AZ48: =ROUND(POWER((E55*E55+H52*H52),0.5),1) -> 6.7
S49: Calculate the total length of the by-pass. | AZ49: =ROUND(POWER((N55*N55+H52*H52),0.5),1) -> 8.5
Z51: km | AA51: ( to 1 d.p.) | AZ51: =ROUND(AZ49+AZ48+AZ47,1) -> 20.3
H52: =ROUND(RAND()*(4-2)+2,0) -> 3 | I52: km | W52: ( Marks 4 RE )
G54: B | M54: H
E55: =ROUND(RAND()*(7-4)+4,0) -> 6 | F55: km | N55: =ROUND(RAND()*(12-8)+8,0) -> 8 | O55: km
